{"text_format":"1","workbook":"xlsx","n_sheets":1,"sheets":["Sheet1"],"not_rendered":{"charts":0,"images":0,"macros":1,"external_links":0,"defined_names":1,"comments":0,"pivot_tables":0},"unopened":[],"bounds":{"document_bytes":16777216,"sheet_cells":100000,"rows_first":2000,"rows_last":500,"rows_between":2000,"halvings":0,"cell_chars":16384,"cell_head_chars":4096},"cells_cut":0,"cells_raw":0,"read":"whole","date_system":"1900"}

{"sheet":"Sheet1","index":0,"n_rows":6,"n_cols":16,"rows_kept":6,"cut":false,"hidden":false,"merged":[]}
["_ATTRIBUTES_",{"$f":"IFERROR(oxojeck1($A2, COLUMN(A1)-1),\"\")","v":"Особенности"},{"$f":"IFERROR(oxojeck1($A2, COLUMN(B1)-1),\"\")","v":"Коллекция"},"Стиль","Цвет фасада","Цвет корпуса","Материал корпуса","Материал фасада","Вес (кг):","Объём (м3):","Страна производства","Количество упаковок (шт.):","Форма поставки","Упаковка","Гарантия (мес):",""]
["Общие|Особенности|европейские материалы, патирование, металлические ручки от Gamet (Польша), бесшумные направляющие с доводчиком Quadro от Hettich (Германия), петли - Intermat от Hettich\nОбщие|Коллекция|Афина\nОбщие|Стиль|Классический\nОбщие|Цвет фасада|Крем\nОбщие|Цвет корпуса|Крем\nОбщие|Материал корпуса|ЛДСП\nОбщие|Материал фасада|МДФ + ПВХ\nОбщие|Вес (кг):|113,25\nОбщие|Объём (м3):|0,149\nОбщие|Страна производства|Беларусь\nОбщие|Количество упаковок (шт.):|3\nОбщие|Форма поставки|В разборе\nОбщие|Упаковка|Гофрокартон\nОбщие|Гарантия (мес):|24 месяца",{"$f":"oxojeck2($A2,B$1)","v":"европейские материалы, патирование, металлические ручки от Gamet (Польша), бесшумные направляющие с доводчиком Quadro от Hettich (Германия), петли - Intermat от Hettich"},{"$f":"oxojeck2($A2,C$1)","v":"Афина"},"Классический","Крем","Крем","ЛДСП","МДФ + ПВХ","113,25","0,149","Беларусь","3","В разборе","Гофрокартон","24 месяца"]
[]
[null,"Column1","Column2","Column3","Column4","Column5","Column6","Column7","Column8","Column9","Column10","Column11","Column12","Column13","Column14"]
[null,"Особенности","Коллекция","Стиль","Цвет фасада","Цвет корпуса","Материал корпуса","Материал фасада","Вес (кг):","Объём (м3):","Страна производства","Количество упаковок (шт.):","Форма поставки","Упаковка","Гарантия (мес):"]
[null,"европейские материалы, патирование, металлические ручки от Gamet (Польша), бесшумные направляющие с доводчиком Quadro от Hettich (Германия), петли - Intermat от Hettich","Афина","Классический","Крем","Крем","ЛДСП","МДФ + ПВХ","113,25","0,149","Беларусь","3","В разборе","Гофрокартон","24 месяца"]